bitfinex/quotes_SOLUSD_20251019
["timestamp","ask_amount","ask_price","bid_price","bid_amount"]
[1760897211357,8.25123602,190.38,190.37,98.54]
[1760897213063,30.43099744,190.39,190.37,98.54]
[1760897213255,8.25099744,190.39,190.37,98.54]
[1760897213454,0.7,190.38,190.37,98.54]
[1760897214063,0.7,190.38,190.37,61.8]
[1760897214260,2.99858344,190.38,190.37,98.54]
[1760897214560,2.99858344,190.38,190.37,102.47851998]
[1760897214763,0.7,190.38,190.37,102.47851998]
[1760897214941,25.87858344,190.38,190.37,102.47851998]
[1760897215762,23.58,190.38,190.37,102.47851998]
[1760897215960,25.87858344,190.38,190.37,102.47851998]
[1760897216359,25.87858344,190.38,190.37,40.67851998]
[1760897218272,23.58,190.38,190.37,40.67851998]
[1760897223281,22.88,190.38,190.37,40.67851998]
[1760897223776,25.87858344,190.38,190.37,40.67851998]
[1760897224173,0.7,190.38,190.37,40.67851998]
[1760897225472,28.13238891,190.39,190.37,40.67851998]
[1760897225658,28.83238891,190.39,190.38,3.93851998]
[1760897225864,28.13238891,190.39,190.38,3.93851998]
[1760897226164,28.83238891,190.39,190.38,40.67851998]
[1760897226557,28.83238891,190.39,190.38,3.93851998]
[1760897226881,28.83238891,190.39,190.38,40.67851998]
[1760897227390,31.13097235,190.39,190.38,40.67851998]
[1760897228375,22.88,190.36,190.33,61.8]
[1760897228565,0.7,190.35,190.34,36.74]
[1760897228767,2.99858344,190.35,190.34,36.74]
[1760897229981,0.7,190.35,190.34,36.74]
[1760897230783,2.99858344,190.35,190.34,36.74]
[1760897233368,2.99858344,190.35,190.33,61.8]
[1760897233874,0.7,190.35,190.34,36.74]
[1760897234061,2.99858344,190.35,190.34,98.54]
[1760897234576,2.29858344,190.36,190.34,98.54]
[1760897235092,8.26155976,190.37,190.34,98.54]
[1760897236883,22.88,190.39,190.35,0.1]
[1760897237182,31.14112531,190.39,190.36,36.74]
[1760897237568,30.43112531,190.39,190.36,36.74]
[1760897237768,0.71,190.38,190.36,36.74]
[1760897238264,3.00858344,190.38,190.36,36.74]
[1760897238468,25.17858344,190.37,190.36,36.74]
[1760897238882,25.17858344,190.37,190.34,61.8]
[1760897239100,25.17858344,190.37,190.35,36.72]
[1760897239404,30.43157448,190.37,190.35,36.72]
[1760897239900,30.43157448,190.37,190.35,98.52]
[1760897240599,22.88,190.37,190.35,98.52]
[1760897241200,22.88,190.37,190.35,98.62]
[1760897241495,7.55092065,190.4,190.36,0.1]
[1760897241674,8.26092065,190.4,190.37,36.72]
[1760897245588,0.71,190.39,190.37,36.72]
[1760897245792,0.71,190.39,190.37,98.52]
[1760897246396,8.26098458,190.39,190.37,98.52]
[1760897246792,7.55098458,190.39,190.37,61.8]
[1760897246997,0.71,190.38,190.37,61.8]
[1760897247200,2.29858344,190.39,190.37,98.52]
[1760897247386,3.00858344,190.39,190.37,98.52]
[1760897248998,0.71,190.38,190.37,61.8]
[1760897249211,3.00858344,190.38,190.37,98.52]
[1760897251611,19.13771123,190.38,190.32,61.8]
[1760897251789,22.88,190.35,190.33,36.72]
[1760897252110,3.00858344,190.34,190.33,36.72]
[1760897252586,3.00858344,190.34,190.33,40.65801888]
[1760897252976,22.88,190.35,190.33,40.65801888]
[1760897253181,25.17858344,190.35,190.34,3.93687493]
[1760897253483,22.88,190.35,190.34,3.93687493]
[1760897255106,23.59,190.35,190.34,3.93687493]
[1760897255484,22.88,190.35,190.34,3.93687493]
[1760897255690,26.4730318,190.35,190.34,3.93687493]
[1760897256008,27.1830318,190.35,190.34,3.93687493]
[1760897257498,27.1830318,190.35,190.34,65.73687493]
[1760897258711,23.59,190.35,190.34,65.73687493]
[1760897258911,27.1830318,190.35,190.34,65.73687493]
[1760897259795,32.43651223,190.35,190.34,61.8]
[1760897260008,32.43651223,190.35,190.34,98.52]
[1760897260895,32.43651223,190.35,190.34,102.4561775]
[1760897261200,15.79903625,190.4,190.34,106.14904446]
[1760897261507,4.3030318,190.4,190.35,4.03601266]
[1760897261717,0.71,190.39,190.36,40.65601266]
[1760897262010,0.71,190.38,190.37,3.93601266]
[1760897262600,3.5930318,190.4,190.37,3.93601266]
[1760897262601,0.71,190.4,190.37,3.93601266]
[1760897262788,0.71,190.39,190.38,36.72]
[1760897262988,23.59,190.39,190.38,36.72]
[1760897264889,22.88,190.39,190.38,40.65494796]
[1760897271013,23.57,190.39,190.38,40.65494796]
[1760897271315,22.88,190.39,190.38,40.65494796]
[1760897271731,0.69,190.42,190.38,44.24797976]
[1760897271894,0.69,190.42,190.39,3.93494796]
[1760897272095,0.69,190.42,190.4,40.63494796]
[1760897272295,0.69,190.42,190.41,3.93494796]
[1760897273327,0.69,190.42,190.4,36.7]
[1760897274709,0.69,190.41,190.4,36.7]
[1760897274910,0.69,190.41,190.4,40.63066692]
[1760897277114,30.87665641,190.43,190.4,40.63066692]
[1760897277415,0.69,190.47,190.41,7.62222073]
[1760897277617,0.69,190.47,190.42,44.22222073]
[1760897277931,0.69,190.47,190.43,3.92918893]
[1760897278098,23.57,190.47,190.44,36.7]
[1760897278499,0.69,190.47,190.44,36.7]
[1760897278816,23.57,190.47,190.44,36.7]
[1760897279418,22.88,190.47,190.44,36.7]
[1760897279606,0.69,190.46,190.44,36.7]
[1760897280307,0.69,190.46,190.42,5.35131207]
[1760897280512,22.88,190.47,190.43,36.68]
[1760897280702,22.88,190.47,190.43,36.78]
[1760897280904,22.88,190.47,190.43,42.03125712]
[1760897281310,23.57,190.47,190.43,41.93125712]
[1760897282720,23.57,190.47,190.43,42.03125712]
[1760897283227,0.69,190.47,190.43,42.03125712]
[1760897283607,0.69,190.47,190.43,41.93125712]
[1760897284000,0.69,190.47,190.43,42.03125712]
[1760897284606,0.2,190.48,190.43,42.03125712]
[1760897284915,0.89,190.48,190.43,42.03125712]
[1760897285116,0.69,190.47,190.43,41.93125712]
[1760897285716,0.69,190.47,190.42,5.2515492]
[1760897285927,0.69,190.47,190.43,36.68]
[1760897286803,3.7930318,190.48,190.44,0.1]
[1760897287106,0.2,190.48,190.45,36.68]
[1760897287324,0.2,190.48,190.45,98.48]
[1760897287828,0.2,190.48,190.45,103.73065755]
[1760897288524,0.2,190.48,190.45,67.05065755]
[1760897288716,0.2,190.48,190.46,36.68]
[1760897289832,0.2,190.48,190.46,41.93041849]
[1760897291534,0.2,190.48,190.46,36.68]
[1760897291833,4.2930318,190.47,190.45,61.8]
[1760897292043,4.2930318,190.46,190.4,67.05208683]
[1760897292207,3.5930318,190.44,190.41,36.68]
[1760897292507,4.2930318,190.44,190.41,36.68]
[1760897292711,3.5930318,190.43,190.41,36.68]
[1760897292911,4.2930318,190.43,190.41,36.68]
[1760897293326,3.5930318,190.43,190.41,36.68]
[1760897293515,4.2930318,190.43,190.41,36.68]
[1760897293731,0.7,190.42,190.39,5.25234657]
[1760897293922,0.7,190.42,190.4,36.66]
[1760897295231,3.5930318,190.43,190.4,36.66]
[1760897295431,4.2830318,190.45,190.4,42.01201478]
[1760897295812,0.69,190.44,190.4,42.01201478]
[1760897296533,0.69,190.44,190.4,41.91201478]
[1760897297132,0.69,190.44,190.4,42.01201478]
[1760897298444,0.69,190.44,190.4,103.81201478]
[1760897301339,3.5930318,190.45,190.4,67.05201478]
[1760897301540,0.69,190.43,190.41,36.66]
[1760897304341,4.2830318,190.43,190.41,61.8]
[1760897304545,0.69,190.42,190.41,61.8]
[1760897304852,0.69,190.42,190.41,98.46]
[1760897305044,4.2830318,190.42,190.41,98.46]
[1760897306430,22.88,190.39,190.33,61.8]
[1760897306627,3.5930318,190.37,190.34,36.66]
[1760897306944,22.88,190.39,190.34,36.66]
[1760897306945,4.2830318,190.36,190.34,36.66]
[1760897307631,0.69,190.36,190.34,36.66]
[1760897307880,3.5930318,190.37,190.34,36.66]
[1760897308027,4.2830318,190.37,190.34,36.66]
[1760897308435,0.69,190.37,190.34,36.66]
[1760897308938,3.5930318,190.38,190.34,36.66]
[1760897309128,0.69,190.37,190.34,36.66]
[1760897309545,8.84570664,190.38,190.34,36.66]
[1760897309742,0.69,190.36,190.34,36.66]
[1760897310451,0.69,190.35,190.34,36.66]
[1760897311260,0.69,190.35,190.25,153.4608397]
[1760897311261,22.88,190.34,190.23,0.1]
[1760897311564,26.4730318,190.24,190.23,0.1]
[1760897312051,27.1630318,190.24,190.23,0.1]
[1760897312455,32.41954988,190.24,190.23,0.1]
[1760897312662,43.29602509,190.24,190.23,0.1]
[1760897313740,43.29602509,190.24,190.22,0.1]
[1760897313948,3.5930318,190.23,190.22,0.1]
[1760897314144,8.8498262,190.23,190.22,0.1]
[1760897314341,9.5398262,190.23,190.22,0.1]
[1760897314943,20.41630141,190.23,190.22,0.1]
[1760897315363,33.75647521,190.19,190.18,0.1]
[1760897315663,37.34950701,190.19,190.18,0.1]
[1760897315862,38.03950701,190.19,190.18,0.1]
[1760897316158,43.297407,190.19,190.18,0.1]
[1760897316653,42.00948773,190.19,190.18,0.1]
[1760897319544,42.00948773,190.19,190.16,0.1]
[1760897319545,10.87647521,190.18,190.16,0.1]
[1760897319748,2.30511253,190.17,190.16,0.1]
[1760897319943,13.87158774,190.17,190.16,0.1]
[1760897320265,22.88,190.13,190.11,1.0]
[1760897320448,13.87158774,190.12,190.11,1.0]
[1760897321367,19.13142363,190.12,190.11,1.0]
[1760897324276,19.13142363,190.12,190.11,0.28]
[1760897324462,22.88,190.05,189.97,0.72]
[1760897324671,2.30511253,189.99,189.97,0.72]
[1760897324970,2.30511253,190.0,189.98,0.72]
[1760897325172,22.88,190.01,189.99,0.72]
[1760897325349,2.30511253,190.0,189.99,0.72]
[1760897325670,2.30511253,190.0,189.97,0.72]
[1760897325870,2.30511253,189.99,189.97,37.66]
[1760897326247,2.30511253,189.99,189.98,0.72]
[1760897326461,2.30511253,190.0,189.98,0.72]
[1760897326979,25.18511253,190.01,189.98,0.72]
[1760897327271,10.87647521,190.04,189.94,12.11226285]
[1760897327272,22.88,189.96,189.94,12.11226285]
[1760897327480,22.40203786,189.95,189.81,2.75077979]
[1760897327654,22.88,189.84,189.81,2.75077979]
[1760897327849,2.30511253,189.82,189.81,2.75077979]
[1760897328080,22.88,189.79,189.65,15.84409411]
[1760897328376,2.30511253,189.7,189.66,0.72]
[1760897328565,25.18511253,189.67,189.55,15.85749398]
[1760897328770,16.18631332,189.65,189.56,5.4119943]
[1760897329076,0.5,189.71,189.56,0.72]
[1760897329373,22.88,189.59,189.56,0.72]
[1760897329672,2.49999999,189.71,189.57,0.72]
[1760897329673,22.88,189.61,189.57,0.72]
[1760897329873,22.88,189.63,189.58,5.30983811]
[1760897330051,5.80983811,189.72,189.62,5.30983811]
[1760897330248,22.88,189.67,189.63,26.36]
[1760897330454,22.88,189.67,189.61,5.30983811]
[1760897330455,5.30983811,189.74,189.65,5.27287107]
[1760897330659,22.88,189.71,189.66,39.36]
[1760897330867,22.88,189.71,189.67,44.72983811]
[1760897331071,0.5,189.8,189.69,5.30983811]
[1760897331270,22.88,189.78,189.67,0.72]
[1760897331573,0.5,189.8,189.67,6.02983811]
[1760897331574,22.88,189.71,189.67,6.02983811]
[1760897331748,22.88,189.71,189.68,0.72]
[1760897331950,22.88,189.74,189.69,0.72]
[1760897332168,0.5,189.73,189.69,0.72]
[1760897332475,0.5,189.76,189.7,0.72]
[1760897332651,0.5,189.76,189.71,5.30983811]
[1760897332850,0.5,189.77,189.72,0.72]
[1760897333065,0.5,189.77,189.71,5.30983811]
[1760897333261,0.5,189.77,189.73,0.72]
[1760897333662,0.5,189.77,189.71,0.72]
[1760897333864,23.38,189.77,189.71,6.02983811]
[1760897335256,23.38,189.77,189.71,0.72]
[1760897335455,22.88,189.71,189.69,38.98]
[1760897335658,22.88,189.71,189.69,39.7]
[1760897335849,22.88,189.71,189.69,38.98]
[1760897336055,28.18983811,189.73,189.7,0.72]
[1760897336476,5.30983811,189.72,189.7,0.72]
[1760897337558,5.76906496,189.79,189.7,0.72]
[1760897337771,5.80983811,189.79,189.71,5.30983811]
[1760897337972,5.80983811,189.79,189.72,39.7]
[1760897338168,5.30983811,189.77,189.73,38.98]
[1760897338372,0.5,189.76,189.73,38.98]
[1760897338580,0.5,189.76,189.73,0.72]
[1760897338758,22.88,189.74,189.73,0.72]
[1760897340285,22.88,189.74,189.69,5.30983811]
[1760897340465,22.88,189.74,189.7,38.98]
[1760897340676,22.88,189.74,189.71,0.72]
[1760897341081,0.5,189.76,189.72,0.72]
[1760897341380,0.5,189.77,189.73,0.72]
[1760897341577,0.5,189.77,189.74,0.72]
[1760897342165,0.5,189.77,189.72,0.72]
[1760897342365,0.5,189.78,189.73,0.72]
[1760897342566,0.5,189.78,189.74,0.72]
[1760897342768,0.5,189.78,189.71,10.58078329]
[1760897342962,0.5,189.78,189.72,0.72]
[1760897343262,0.5,189.78,189.72,6.02983811]
[1760897343459,22.88,189.77,189.73,6.02983811]
[1760897343677,5.30983811,189.83,189.76,5.30983811]
[1760897343884,0.5,189.87,189.77,0.72]
[1760897343885,22.88,189.79,189.77,0.72]
[1760897344184,5.80983811,189.82,189.78,0.72]
[1760897344366,5.80983811,189.82,189.79,0.72]
[1760897344568,0.5,189.82,189.76,44.20983811]
[1760897344774,5.30983811,189.79,189.77,38.88]
[1760897345689,22.88,189.8,189.77,38.88]
[1760897345886,22.88,189.8,189.77,44.14951877]
[1760897346090,8.06396259,189.84,189.78,5.30983811]
[1760897346303,0.5,189.89,189.83,5.30983811]
[1760897346600,22.88,189.87,189.84,44.90983811]
[1760897346896,5.30983811,189.93,189.86,5.30983811]
[1760897347075,0.5,189.92,189.87,38.88]
[1760897347270,22.88,189.9,189.88,0.72]
[1760897347472,5.80983811,189.92,189.88,0.72]
[1760897347969,0.5,189.94,189.89,0.72]
[1760897348174,5.80983811,189.94,189.9,0.72]
[1760897348391,5.30983811,189.92,189.91,0.72]
[1760897348686,5.30983811,189.93,189.91,0.72]
[1760897348891,28.18983811,189.93,189.91,0.72]
[1760897349392,22.88,189.9,189.81,13.17051351]
[1760897349595,5.30983811,189.88,189.86,0.72]
[1760897349891,28.18983811,189.9,189.87,39.54]
[1760897350069,28.18983811,189.9,189.88,0.72]
[1760897350274,28.18983811,189.9,189.88,39.58]
[1760897351377,22.88,189.94,189.88,39.58]
[1760897351687,5.30983811,189.91,189.88,44.82648295]
[1760897351883,5.30983811,189.91,189.89,0.7]
[1760897352296,5.30983811,189.9,189.89,0.7]
[1760897352496,5.80983811,189.9,189.87,38.8]
[1760897352671,28.18983811,189.88,189.87,38.8]
[1760897353695,28.18983811,189.88,189.87,39.5]
[1760897354074,28.18983811,189.89,189.87,0.7]
[1760897354381,28.18983811,189.89,189.87,39.48]
[1760897354767,5.30983811,189.91,189.88,0.67]
[1760897354975,5.30983811,189.92,189.88,0.67]
[1760897355183,2.7524744,189.96,189.88,0.67]
[1760897355385,5.30983811,189.93,189.88,0.67]
[1760897355589,5.30983811,189.92,189.89,5.93620675]
[1760897355773,5.30983811,189.92,189.9,39.43]
[1760897356588,5.30983811,189.91,189.9,38.76]
[1760897357604,5.30983811,189.91,189.9,39.43]
[1760897358108,5.30983811,189.92,189.9,39.43]
[1760897359292,5.30983811,189.93,189.91,0.67]
[1760897360279,5.30983811,189.92,189.91,0.67]
[1760897360480,5.30983811,189.92,189.91,38.68]
[1760897360691,5.30983811,189.92,189.89,0.67]
[1760897360992,5.30983811,189.91,189.9,38.66]
[1760897361295,5.30983811,189.91,189.9,39.33]
[1760897361783,5.30983811,189.91,189.9,0.67]
[1760897361983,5.30983811,189.91,189.9,39.33]
[1760897362597,5.30983811,189.92,189.9,39.33]
[1760897362800,5.30983811,189.92,189.91,0.67]
[1760897363093,5.30983811,189.93,189.91,0.67]
[1760897363305,22.88,189.91,189.9,43.9258326]
[1760897363678,2.75226552,189.98,189.9,49.23567071]
[1760897363885,22.88,189.92,189.91,0.67]
[1760897364487,22.88,189.93,189.91,0.67]
[1760897364698,22.88,189.93,189.92,5.26537489]
[1760897364902,22.88,189.93,189.92,5.93537489]
[1760897365282,22.88,189.94,189.92,5.93537489]
[1760897365477,5.30983811,189.97,189.93,0.67]
[1760897365696,5.30983811,189.97,189.94,38.6]
[1760897365697,22.88,189.95,189.94,38.6]
[1760897365892,22.88,189.95,189.94,39.27]
[1760897366298,5.30983811,189.95,189.81,61.8]
[1760897366488,5.30983811,189.97,189.87,0.67]
[1760897366489,23.38,189.94,189.87,0.67]
[1760897366805,5.30983811,189.91,189.88,38.58]
[1760897367103,5.30983811,189.91,189.89,0.67]
[1760897367515,5.30983811,189.91,189.9,0.67]
[1760897367886,22.88,189.97,189.9,0.67]
[1760897368079,5.30983811,189.92,189.9,0.67]
[1760897368280,5.30983811,189.92,189.91,0.67]
[1760897368882,5.30983811,189.93,189.91,5.93565215]
[1760897369103,5.30983811,189.93,189.92,39.23]
[1760897369404,0.5,189.96,189.92,39.23]
[1760897369585,5.30983811,189.94,189.93,0.67]
[1760897371402,5.30983811,189.94,189.92,43.82513331]
[1760897371607,5.30983811,189.94,189.92,44.49513331]
[1760897372509,22.88,189.9,189.8,0.67]
[1760897372684,5.30983811,189.81,189.8,0.67]
[1760897372883,22.88,189.83,189.8,34.41864782]
[1760897373191,22.88,189.82,189.81,0.67]
[1760897374292,5.30983811,189.86,189.81,0.67]
[1760897374494,5.30983811,189.86,189.8,46.92040756]
[1760897374495,5.30983811,189.82,189.8,5.26864782]
[1760897374700,0.5,189.86,189.81,39.79]
[1760897375007,5.30983811,189.82,189.81,39.79]
[1760897375214,5.30983811,189.82,189.79,0.67]
[1760897375383,5.30983811,189.8,189.79,0.67]
[1760897375589,5.30983811,189.8,189.79,39.1]
[1760897376715,8.05661442,189.8,189.79,39.1]
[1760897376911,30.93661442,189.8,189.79,39.1]
[1760897377101,30.93661442,189.8,189.75,5.26995422]
[1760897377305,22.88,189.8,189.76,34.76]
[1760897377494,8.05661442,189.77,189.76,35.43]
[1760897378218,8.05661442,189.77,189.76,40.6998145]
[1760897380225,8.05661442,189.77,189.75,39.04]
[1760897380393,8.05661442,189.76,189.75,39.04]
[1760897381101,8.05661442,189.76,189.75,44.31009222]
[1760897381319,30.93661442,189.76,189.71,0.67]
[1760897381498,8.05661442,189.72,189.71,39.06]
[1760897381700,8.05661442,189.74,189.71,39.06]
[1760897382101,8.05661442,189.74,189.72,0.67]
[1760897382300,8.05661442,189.74,189.73,0.67]
[1760897384336,8.05661442,189.74,189.72,5.27088947]
[1760897384642,8.05661442,189.74,189.72,5.95088947]
[1760897384809,22.88,189.74,189.73,0.68]
[1760897385131,0.5,189.84,189.73,0.68]
[1760897385431,30.93661442,189.78,189.73,0.68]
[1760897385831,8.05661442,189.77,189.73,0.68]
[1760897386215,22.88,189.78,189.73,0.68]
[1760897386403,22.88,189.78,189.73,8.73661442]
[1760897386610,8.05661442,189.8,189.74,0.68]
[1760897386921,8.05661442,189.79,189.75,44.23009222]
[1760897387124,8.05661442,189.79,189.76,0.68]
[1760897387326,8.05661442,189.79,189.77,0.68]
[1760897387521,8.05661442,189.8,189.78,0.68]
[1760897387835,22.88,189.76,189.68,0.68]
[1760897388013,8.05661442,189.71,189.68,0.68]
[1760897388333,8.05661442,189.71,189.66,44.89246185]
[1760897388512,8.05661442,189.71,189.67,0.68]
[1760897388722,8.05661442,189.71,189.68,0.68]
[1760897389426,0.5,189.73,189.66,44.21246185]
[1760897389621,8.05661442,189.7,189.66,44.89246185]
[1760897389825,8.05661442,189.7,189.67,0.68]
[1760897390134,8.05661442,189.7,189.68,0.68]
[1760897390432,0.5,189.69,189.63,5.9534272]
[1760897390631,8.05661442,189.65,189.63,45.0934272]
[1760897391414,8.05661442,189.64,189.63,39.82]
[1760897391631,8.05661442,189.65,189.63,45.09341197]
[1760897391842,8.05661442,189.65,189.64,0.68]
[1760897392024,8.05661442,189.66,189.64,0.68]
[1760897392340,8.05661442,189.7,189.65,0.68]
[1760897392723,8.05661442,189.7,189.66,5.27259306]
[1760897392933,8.05661442,189.7,189.67,39.8]
[1760897393120,8.05661442,189.7,189.66,5.27259306]
[1760897393121,8.05661442,189.68,189.66,5.27259306]
[1760897393327,8.05661442,189.68,189.67,39.1]
[1760897393715,8.05661442,189.69,189.67,39.1]
[1760897393921,8.05661442,189.69,189.67,39.78]
[1760897394927,8.05661442,189.69,189.67,45.0522053]
[1760897395129,22.88,189.66,189.58,0.68]
[1760897395461,8.05661442,189.65,189.58,0.68]
[1760897395734,8.05661442,189.64,189.58,0.68]
[1760897396039,8.05661442,189.63,189.58,0.68]
[1760897396219,8.05661442,189.63,189.59,0.68]
[1760897396421,8.05661442,189.63,189.6,39.86]
[1760897396622,8.05661442,189.63,189.61,0.68]
[1760897396922,8.05661442,189.63,189.6,42.63403098]
[1760897398321,8.05661442,189.62,189.61,39.12]
[1760897398823,8.05661442,189.63,189.61,44.39398343]
[1760897399024,0.68,189.65,189.57,0.68]
[1760897399324,8.05661442,189.61,189.58,39.1]
[1760897399518,8.05661442,189.61,189.58,39.78]
[1760897400042,8.05661442,189.6,189.58,39.78]
[1760897400221,0.68,189.68,189.59,8.73661442]
[1760897400423,8.05661442,189.66,189.6,0.68]
[1760897400846,8.05661442,189.65,189.61,5.27398343]
[1760897401026,8.05661442,189.65,189.62,39.12]
[1760897401231,8.05661442,189.63,189.59,0.68]
[1760897401537,8.05661442,189.62,189.59,39.8]
[1760897401743,8.05661442,189.6,189.56,0.68]
[1760897401942,8.05661442,189.63,189.57,39.12]
[1760897402139,8.05661442,189.63,189.58,0.68]
[1760897402336,8.05661442,189.63,189.59,0.68]
[1760897402519,8.05661442,189.63,189.6,0.68]
[1760897402847,8.05661442,189.63,189.61,39.12]
[1760897403346,8.05661442,189.64,189.61,39.12]
[1760897403524,8.05661442,189.64,189.61,44.39397244]
[1760897403720,8.05661442,189.64,189.61,45.07397244]
[1760897404928,30.93661442,189.65,189.61,45.07397244]
[1760897405629,0.5,189.67,189.61,44.39397244]
[1760897405830,8.05661442,189.67,189.62,0.68]
[1760897406032,8.05661442,189.68,189.61,114.25058686]
[1760897406337,8.05661442,189.68,189.62,0.68]
[1760897406723,8.05661442,189.68,189.62,62.48]
[1760897406928,8.05661442,189.68,189.63,19.1369952]
[1760897407126,8.05661442,189.68,189.64,0.68]
[1760897407344,8.05661442,189.68,189.65,39.7]
[1760897409042,8.05661442,189.69,189.66,5.95259306]
[1760897409252,22.88,189.71,189.67,0.68]
[1760897409456,10.87647521,189.74,189.68,8.05661442]
[1760897409457,8.05661442,189.74,189.68,8.05661442]
[1760897409756,8.05661442,189.74,189.69,0.68]
[1760897409930,8.05661442,189.73,189.7,38.98]
[1760897410126,8.73661442,189.73,189.71,38.98]
[1760897410434,8.05661442,189.73,189.71,38.98]
[1760897411645,32.10661442,189.72,189.65,5.27287107]
[1760897411848,24.05,189.72,189.66,38.96]
[1760897412055,8.05661442,189.67,189.66,38.96]
[1760897412648,8.05661442,189.7,189.66,39.66]
[1760897412835,30.93661442,189.72,189.67,0.7]
[1760897413041,30.93661442,189.72,189.67,5.97231507]
[1760897413550,8.05661442,189.71,189.67,5.97231507]
[1760897413745,8.05661442,189.71,189.68,0.7]
[1760897413947,8.05661442,189.71,189.69,0.68]
[1760897414249,8.05661442,189.71,189.7,38.94]
[1760897415455,30.93661442,189.72,189.7,38.94]
[1760897416035,30.93661442,189.72,189.7,106.01136847]
[1760897416036,22.88,189.72,189.7,106.01136847]
[1760897416237,8.05661442,189.73,189.7,106.01136847]
[1760897416932,8.05661442,189.74,189.71,0.68]
[1760897417452,8.05661442,189.74,189.71,5.95094933]
[1760897419057,8.05661442,189.75,189.72,0.68]
[1760897419356,22.88,189.7,189.66,38.84]
[1760897419656,8.05661442,189.67,189.62,5.2737053]
[1760897419844,1.18,189.69,189.62,5.2737053]
[1760897419845,8.05661442,189.65,189.62,5.2737053]
[1760897420042,0.68,189.66,189.61,5.27394331]
[1760897420043,8.05661442,189.64,189.61,5.27394331]
[1760897420249,8.05661442,189.64,189.62,38.88]
[1760897421065,23.38,189.69,189.62,44.15365454]
[1760897421066,8.05661442,189.65,189.62,44.15365454]
[1760897423242,8.05661442,189.65,189.62,38.86]
[1760897423559,8.05661442,189.65,189.62,39.54]
[1760897424273,0.5,189.68,189.62,44.13359353]
[1760897424463,8.05661442,189.68,189.63,0.68]
[1760897424663,22.88,189.69,189.64,0.68]
[1760897424664,8.05661442,189.69,189.64,0.68]
[1760897424960,30.93661442,189.69,189.65,38.8]
[1760897425159,8.05661442,189.68,189.65,100.6]
[1760897425845,8.05661442,189.68,189.65,101.28]
[1760897426060,8.05661442,189.68,189.65,106.55267276]
[1760897427544,30.93661442,189.69,189.66,0.68]
[1760897427744,30.93661442,189.69,189.66,62.48]
[1760897428567,30.93661442,189.69,189.66,67.75253895]
[1760897428771,22.88,189.69,189.66,67.07253895]
[1760897428980,22.88,189.69,189.67,0.68]
[1760897429278,22.88,189.69,189.68,39.4]
[1760897429447,22.88,189.69,189.68,38.72]
[1760897430579,22.88,189.69,189.68,39.4]
[1760897431067,22.88,189.69,189.68,44.67203711]
[1760897431279,0.5,189.74,189.68,52.72865153]
[1760897431456,0.5,189.74,189.68,52.04865153]
[1760897431657,8.05661442,189.75,189.68,52.04865153]
[1760897431658,0.5,189.75,189.71,8.05661442]
[1760897431972,22.88,189.75,189.72,39.36]
[1760897432174,0.5,189.77,189.72,39.36]
[1760897432175,0.5,189.77,189.73,39.36]
[1760897432555,22.88,189.76,189.73,38.68]
[1760897432753,22.88,189.76,189.74,0.68]
[1760897433372,0.5,189.78,189.74,0.68]
[1760897433674,22.88,189.75,189.74,0.68]
[1760897434173,22.88,189.75,189.74,5.95036997]
[1760897435774,31.43661442,189.78,189.74,5.95036997]
[1760897436162,26.43661442,189.78,189.74,5.95036997]